[Event "Early-Titled-Tuesday-Blitz-April-23-2024"]
[Site "Chess.com"]
[Date "2024.04.23"]
[Round "9"]
[White "ImportedItalianMaple"]
[Black "guillembaches"]
[Result "1-0"]
[WhiteElo "2472"]
[BlackElo "2575"]
[TimeControl "180+1"]
[EndTime "9:48:00 PDT"]
[Termination "ImportedItalianMaple won on time"]

1. e4 {[%clk 0:02:58.1]} 1... c5 {[%clk 0:03:00.2]} 2. Nf3 {[%clk 0:02:58.5]}
2... d6 {[%clk 0:03:00.8]} 3. Bb5+ {[%clk 0:02:58.3]} 3... Bd7 {[%clk
0:02:58.3]} 4. Bxd7+ {[%clk 0:02:58.2]} 4... Qxd7 {[%clk 0:02:59.2]} 5. O-O
{[%clk 0:02:54.6]} 5... Nf6 {[%clk 0:02:59.4]} 6. Qe2 {[%clk 0:02:54.9]} 6...
Nc6 {[%clk 0:02:58.4]} 7. c3 {[%clk 0:02:53.5]} 7... e6 {[%clk 0:02:58.5]} 8. d4
{[%clk 0:02:53.7]} 8... cxd4 {[%clk 0:02:58.8]} 9. cxd4 {[%clk 0:02:54.6]} 9...
d5 {[%clk 0:02:59.2]} 10. e5 {[%clk 0:02:45.1]} 10... Ne4 {[%clk 0:02:59.1]} 11.
Nc3 {[%clk 0:02:32]} 11... Nxc3 {[%clk 0:02:57.4]} 12. bxc3 {[%clk 0:02:32.9]}
12... Be7 {[%clk 0:02:57.3]} 13. Rd1 {[%clk 0:02:29.3]} 13... O-O {[%clk
0:02:56.1]} 14. Rd3 {[%clk 0:02:27.7]} 14... Rac8 {[%clk 0:02:55.5]} 15. Ng5
{[%clk 0:02:15.2]} 15... Bxg5 {[%clk 0:02:49.2]} 16. Bxg5 {[%clk 0:02:16.1]}
16... Ne7 {[%clk 0:02:45.5]} 17. Rh3 {[%clk 0:02:11.1]} 17... h6 {[%clk
0:02:25]} 18. Qh5 {[%clk 0:02:07.7]} 18... Nf5 {[%clk 0:02:11.2]} 19. Bd2 {[%clk
0:01:58.7]} 19... Rc4 {[%clk 0:01:53.4]} 20. Qf3 {[%clk 0:01:55.8]} 20... Qe7
{[%clk 0:01:42.2]} 21. g4 {[%clk 0:01:44.9]} 21... Nh4 {[%clk 0:01:41.2]} 22.
Qg3 {[%clk 0:01:45.6]} 22... Ng6 {[%clk 0:01:09.1]} 23. f4 {[%clk 0:01:43.3]}
23... Qd7 {[%clk 0:00:38.5]} 24. Rf1 {[%clk 0:01:42.1]} 24... Ne7 {[%clk
0:00:32]} 25. f5 {[%clk 0:01:38.1]} 25... exf5 {[%clk 0:00:29.7]} 26. g5 {[%clk
0:01:38.7]} 26... hxg5 {[%clk 0:00:19.4]} 27. Qxg5 {[%clk 0:01:37.8]} 27... Ng6
{[%clk 0:00:16.8]} 28. Qh5 {[%clk 0:01:31.2]} 28... Rfc8 {[%clk 0:00:17.3]} 29.
Rxf5 {[%clk 0:01:22]} 29... b5 {[%clk 0:00:15.7]} 30. Qh7+ {[%clk 0:01:22]}
30... Kf8 {[%clk 0:00:16]} 31. Qxg6 {[%clk 0:01:22.4]} 31... b4 {[%clk
0:00:16.5]} 32. Rh8+ {[%clk 0:01:20.7]} 1-0

[Event "Early-Titled-Tuesday-Blitz-April-23-2024"]
[Site "Chess.com"]
[Date "2024.04.23"]
[Round "9"]
[White "KubaGepard"]
[Black "alpope"]
[Result "1-0"]
[WhiteElo "2613"]
[BlackElo "2516"]
[TimeControl "180+1"]
[EndTime "9:48:06 PDT"]
[Termination "KubaGepard won on time"]

1. d4 {[%clk 0:03:00.9]} 1... g6 {[%clk 0:02:58.1]} 2. e4 {[%clk 0:03:00.7]}
2... Bg7 {[%clk 0:02:58.4]} 3. Nc3 {[%clk 0:03:01.4]} 3... d6 {[%clk 0:02:58.8]}
4. Be3 {[%clk 0:03:01.3]} 4... a6 {[%clk 0:02:58.8]} 5. h4 {[%clk 0:03:00.8]}
5... h5 {[%clk 0:02:47.8]} 6. Nf3 {[%clk 0:02:59.7]} 6... b5 {[%clk 0:02:47.9]}
7. Ng5 {[%clk 0:02:58.8]} 7... Bb7 {[%clk 0:02:45.1]} 8. Bd3 {[%clk 0:02:57.9]}
8... Nd7 {[%clk 0:02:40.8]} 9. Qd2 {[%clk 0:02:53.6]} 9... e5 {[%clk 0:02:30.2]}
10. d5 {[%clk 0:02:51.1]} 10... Ngf6 {[%clk 0:02:23.3]} 11. f3 {[%clk
0:02:49.7]} 11... Nh7 {[%clk 0:01:42.3]} 12. a3 {[%clk 0:02:45.4]} 12... Nxg5
{[%clk 0:01:41.1]} 13. hxg5 {[%clk 0:02:46.3]} 13... Qe7 {[%clk 0:01:37]} 14.
O-O-O {[%clk 0:02:41.3]} 14... f6 {[%clk 0:01:30.5]} 15. gxf6 {[%clk 0:02:40.5]}
15... Bxf6 {[%clk 0:01:30.5]} 16. Ne2 {[%clk 0:02:32]} 16... h4 {[%clk
0:01:19.6]} 17. g3 {[%clk 0:02:27.5]} 17... Nf8 {[%clk 0:01:13.2]} 18. gxh4
{[%clk 0:02:26.5]} 18... Rxh4 {[%clk 0:01:12.2]} 19. Rxh4 {[%clk 0:02:23.9]}
19... Bxh4 {[%clk 0:01:13.1]} 20. Rh1 {[%clk 0:02:23.4]} 20... Bf6 {[%clk
0:01:10.7]} 21. Nc3 {[%clk 0:02:22.7]} 21... Bc8 {[%clk 0:01:04.1]} 22. Qg2
{[%clk 0:02:15.1]} 22... Bd7 {[%clk 0:00:59.6]} 23. Ne2 {[%clk 0:02:08]} 23...
Rc8 {[%clk 0:00:43.3]} 24. Kb1 {[%clk 0:02:07.3]} 24... c5 {[%clk 0:00:42.2]}
25. dxc6 {[%clk 0:02:08.2]} 25... Rxc6 {[%clk 0:00:40.6]} 26. Nc3 {[%clk
0:02:07.2]} 26... Be6 {[%clk 0:00:34.7]} 27. Nd5 {[%clk 0:02:06.6]} 27... Qf7
{[%clk 0:00:31.8]} 28. f4 {[%clk 0:02:03.5]} 28... Bxd5 {[%clk 0:00:18.2]} 29.
exd5 {[%clk 0:02:03.1]} 29... Rc7 {[%clk 0:00:18.4]} 30. f5 {[%clk 0:02:02.3]}
30... gxf5 {[%clk 0:00:15.3]} 31. Bxf5 {[%clk 0:02:02.3]} 31... Rc4 {[%clk
0:00:07.8]} 32. Rf1 {[%clk 0:01:58]} 32... Qg7 {[%clk 0:00:07]} 33. Qe2 {[%clk
0:01:54.7]} 33... e4 {[%clk 0:00:07.2]} 34. Rg1 {[%clk 0:01:47.9]} 34... Qc7
{[%clk 0:00:04.4]} 35. Bc1 {[%clk 0:01:45.9]} 35... Be5 {[%clk 0:00:02.2]} 36.
Bxe4 {[%clk 0:01:45]} 36... Nd7 {[%clk 0:00:02.7]} 37. Bg6+ {[%clk 0:01:44.6]}
37... Kd8 {[%clk 0:00:03]} 38. Bd3 {[%clk 0:01:43.2]} 38... Rc5 {[%clk
0:00:02.8]} 39. Rg8+ {[%clk 0:01:43.2]} 39... Ke7 {[%clk 0:00:02.4]} 40. Bg5+
{[%clk 0:01:43.2]} 40... Nf6 {[%clk 0:00:02.9]} 41. Rg7+ {[%clk 0:01:42.3]} 1-0

[Event "Early-Titled-Tuesday-Blitz-April-23-2024"]
[Site "Chess.com"]
[Date "2024.04.23"]
[Round "9"]
[White "JonasEilenberg"]
[Black "rikchessmx"]
[Result "1-0"]
[WhiteElo "2730"]
[BlackElo "2272"]
[TimeControl "180+1"]
[EndTime "9:48:06 PDT"]
[Termination "JonasEilenberg won by checkmate"]

1. d4 {[%clk 0:03:00.9]} 1... Nf6 {[%clk 0:02:52.5]} 2. c4 {[%clk 0:03:01.5]}
2... e6 {[%clk 0:02:52.2]} 3. Nc3 {[%clk 0:03:02]} 3... d5 {[%clk 0:02:51.4]} 4.
Bg5 {[%clk 0:03:01]} 4... c6 {[%clk 0:02:51.2]} 5. e3 {[%clk 0:02:59.8]} 5...
Be7 {[%clk 0:02:49.5]} 6. Rc1 {[%clk 0:02:59.7]} 6... Qa5 {[%clk 0:02:48]} 7.
Nf3 {[%clk 0:02:58.8]} 7... Nbd7 {[%clk 0:02:44.3]} 8. Qc2 {[%clk 0:02:57.4]}
8... Bb4 {[%clk 0:02:40]} 9. cxd5 {[%clk 0:02:45]} 9... Nxd5 {[%clk 0:02:39.1]}
10. Bc4 {[%clk 0:02:30.8]} 10... N7b6 {[%clk 0:02:32.6]} 11. Bb3 {[%clk
0:02:30.9]} 11... Be7 {[%clk 0:02:25.6]} 12. Bxe7 {[%clk 0:02:30.3]} 12... Nxe7
{[%clk 0:02:25.5]} 13. O-O {[%clk 0:02:30.4]} 13... O-O {[%clk 0:02:24.8]} 14.
Ne4 {[%clk 0:02:29.6]} 14... Nbd5 {[%clk 0:02:20]} 15. Nc5 {[%clk 0:02:18.4]}
15... Qc7 {[%clk 0:02:14]} 16. e4 {[%clk 0:02:12]} 16... Nf4 {[%clk 0:02:12.9]}
17. g3 {[%clk 0:02:08.3]} 17... Nfg6 {[%clk 0:02:11.4]} 18. Rfd1 {[%clk
0:02:07]} 18... Rd8 {[%clk 0:02:02.1]} 19. Nd3 {[%clk 0:02:04.2]} 19... Bd7
{[%clk 0:01:40.7]} 20. Nde5 {[%clk 0:02:04.2]} 20... Be8 {[%clk 0:01:40.3]} 21.
Kg2 {[%clk 0:02:03]} 21... Rac8 {[%clk 0:01:32.1]} 22. Nxg6 {[%clk 0:01:57.6]}
22... Nxg6 {[%clk 0:01:24.7]} 23. d5 {[%clk 0:01:58]} 23... exd5 {[%clk
0:01:23]} 24. exd5 {[%clk 0:01:58.1]} 24... Qb6 {[%clk 0:01:10.2]} 25. d6 {[%clk
0:01:51.7]} 25... c5 {[%clk 0:01:06.5]} 26. Qf5 {[%clk 0:01:40.6]} 26... Qc6
{[%clk 0:00:17.3]} 27. Bd5 {[%clk 0:01:34.1]} 27... Qd7 {[%clk 0:00:15.8]} 28.
Qh5 {[%clk 0:01:26.6]} 28... Qb5 {[%clk 0:00:12.3]} 29. Ng5 {[%clk 0:01:22.7]}
29... Nf8 {[%clk 0:00:10.6]} 30. Nxf7 {[%clk 0:01:16.1]} 30... g6 {[%clk
0:00:10.4]} 31. Nh6+ {[%clk 0:01:12.5]} 31... Kg7 {[%clk 0:00:10.5]} 32. Qg5
{[%clk 0:01:08]} 32... Bc6 {[%clk 0:00:10]} 33. Nf5+ {[%clk 0:01:07.9]} 33...
Kh8 {[%clk 0:00:09.5]} 34. Qf6# {[%clk 0:01:08.5]} 1-0

[Event "Early-Titled-Tuesday-Blitz-April-23-2024"]
[Site "Chess.com"]
[Date "2024.04.23"]
[Round "9"]
[White "JeFumeDesClopes"]
[Black "The_Sherman_Variation"]
[Result "1-0"]
[WhiteElo "2624"]
[BlackElo "2727"]
[TimeControl "180+1"]
[EndTime "9:48:08 PDT"]
[Termination "JeFumeDesClopes won by checkmate"]

1. e4 {[%clk 0:03:00.9]} 1... c5 {[%clk 0:02:57.4]} 2. Nc3 {[%clk 0:03:01]} 2...
g6 {[%clk 0:02:53.9]} 3. d4 {[%clk 0:03:00.7]} 3... cxd4 {[%clk 0:02:53.7]} 4.
Qxd4 {[%clk 0:03:01.6]} 4... Nf6 {[%clk 0:02:54]} 5. Be3 {[%clk 0:03:02.2]} 5...
Nc6 {[%clk 0:02:54.1]} 6. Qd2 {[%clk 0:03:02.5]} 6... Bg7 {[%clk 0:02:54]} 7. f3
{[%clk 0:03:01.8]} 7... O-O {[%clk 0:02:51.5]} 8. O-O-O {[%clk 0:03:02]} 8... d6
{[%clk 0:02:50.8]} 9. Nge2 {[%clk 0:03:02.2]} 9... Bd7 {[%clk 0:02:48.1]} 10. h4
{[%clk 0:03:00.7]} 10... b5 {[%clk 0:02:42.5]} 11. h5 {[%clk 0:02:57.3]} 11...
Be6 {[%clk 0:02:38.9]} 12. Bh6 {[%clk 0:02:47.2]} 12... b4 {[%clk 0:02:36.8]}
13. Nd5 {[%clk 0:02:36.5]} 13... Bxd5 {[%clk 0:02:35.7]} 14. exd5 {[%clk
0:02:34.4]} 14... Ne5 {[%clk 0:02:35.5]} 15. Bxg7 {[%clk 0:02:33.5]} 15... Kxg7
{[%clk 0:02:35.3]} 16. Nd4 {[%clk 0:02:23.6]} 16... Qa5 {[%clk 0:02:32.9]} 17.
hxg6 {[%clk 0:02:18.2]} 17... fxg6 {[%clk 0:02:31.3]} 18. Ne6+ {[%clk
0:02:16.6]} 18... Kg8 {[%clk 0:02:30.2]} 19. Kb1 {[%clk 0:02:11.5]} 19... Rfc8
{[%clk 0:02:28.6]} 20. f4 {[%clk 0:02:08.1]} 20... Nf7 {[%clk 0:02:26.4]} 21. f5
{[%clk 0:02:03]} 21... gxf5 {[%clk 0:02:15]} 22. Ng5 {[%clk 0:02:01.2]} 22...
Qc5 {[%clk 0:01:58]} 23. Bd3 {[%clk 0:01:53.3]} 23... Qxd5 {[%clk 0:01:53.9]}
24. Nxf7 {[%clk 0:01:49.4]} 24... Kxf7 {[%clk 0:01:48.5]} 25. Rdf1 {[%clk
0:01:49.3]} 25... e6 {[%clk 0:01:43.7]} 26. g4 {[%clk 0:01:49.1]} 26... Nxg4
{[%clk 0:01:24.9]} 27. Rxh7+ {[%clk 0:01:48.3]} 27... Kg6 {[%clk 0:01:22.2]} 28.
Rfh1 {[%clk 0:01:30.3]} 28... Kf6 {[%clk 0:00:56.1]} 29. R1h6+ {[%clk
0:01:02.2]} 29... Nxh6 {[%clk 0:00:55.8]} 30. Qxh6+ {[%clk 0:01:03.1]} 30... Ke5
{[%clk 0:00:55.3]} 31. Qg7+ {[%clk 0:00:51.2]} 31... Kf4 {[%clk 0:00:52.3]} 32.
Rh4+ {[%clk 0:00:46.5]} 32... Ke3 {[%clk 0:00:48.1]} 33. Qg1+ {[%clk 0:00:43.9]}
33... Kf3 {[%clk 0:00:44]} 34. Rh3+ {[%clk 0:00:40.5]} 34... Kf4 {[%clk
0:00:40.8]} 35. Qg3# {[%clk 0:00:39.9]} 1-0

[Event "Early-Titled-Tuesday-Blitz-April-23-2024"]
[Site "Chess.com"]
[Date "2024.04.23"]
[Round "9"]
[White "WiktoriaPOL"]
[Black "Statham_01"]
[Result "1-0"]
[WhiteElo "2420"]
[BlackElo "2560"]
[TimeControl "180+1"]
[EndTime "9:48:08 PDT"]
[Termination "WiktoriaPOL won by resignation"]

1. c4 {[%clk 0:03:00.9]} 1... e5 {[%clk 0:02:59.8]} 2. Nc3 {[%clk 0:03:00.3]}
2... Nf6 {[%clk 0:03:00.3]} 3. Nf3 {[%clk 0:03:00.1]} 3... e4 {[%clk 0:03:00.5]}
4. Ng5 {[%clk 0:02:58.7]} 4... c6 {[%clk 0:03:01.4]} 5. Ngxe4 {[%clk 0:02:57.3]}
5... Nxe4 {[%clk 0:03:02.3]} 6. Nxe4 {[%clk 0:02:56.3]} 6... d5 {[%clk
0:03:03.2]} 7. cxd5 {[%clk 0:02:49.8]} 7... cxd5 {[%clk 0:03:04.1]} 8. Nc3
{[%clk 0:02:45.6]} 8... d4 {[%clk 0:03:03.9]} 9. Ne4 {[%clk 0:02:44.5]} 9... Nc6
{[%clk 0:03:04.4]} 10. d3 {[%clk 0:02:43.1]} 10... Bf5 {[%clk 0:03:04.1]} 11. g3
{[%clk 0:02:34]} 11... h5 {[%clk 0:03:02.4]} 12. h4 {[%clk 0:02:28.8]} 12...
Bb4+ {[%clk 0:02:59.3]} 13. Bd2 {[%clk 0:02:28.7]} 13... Bxe4 {[%clk 0:02:54]}
14. dxe4 {[%clk 0:02:28]} 14... Qe7 {[%clk 0:02:47.4]} 15. Bg2 {[%clk
0:02:26.2]} 15... O-O-O {[%clk 0:02:43.2]} 16. O-O {[%clk 0:02:14.8]} 16... Bxd2
{[%clk 0:02:42.1]} 17. Qxd2 {[%clk 0:02:14.9]} 17... f6 {[%clk 0:02:42.4]} 18.
Rac1 {[%clk 0:02:07.4]} 18... Kb8 {[%clk 0:02:42.5]} 19. Qc2 {[%clk 0:01:49.8]}
19... Rc8 {[%clk 0:02:40.5]} 20. Qb3 {[%clk 0:01:42.4]} 20... g5 {[%clk
0:02:39.3]} 21. hxg5 {[%clk 0:01:22.3]} 21... h4 {[%clk 0:02:40.2]} 22. gxh4
{[%clk 0:01:11.9]} 22... fxg5 {[%clk 0:02:38.9]} 23. Qg3+ {[%clk 0:00:55.6]}
23... Ka8 {[%clk 0:02:37.5]} 24. hxg5 {[%clk 0:00:53.9]} 24... d3 {[%clk
0:02:31.9]} 25. exd3 {[%clk 0:00:44.2]} 25... Nd4 {[%clk 0:02:31.5]} 26. Rxc8+
{[%clk 0:00:39]} 26... Rxc8 {[%clk 0:02:32.4]} 27. Qe3 {[%clk 0:00:35.7]} 27...
Rd8 {[%clk 0:02:22.5]} 28. Rc1 {[%clk 0:00:23.6]} 28... a6 {[%clk 0:02:21.5]}
29. f4 {[%clk 0:00:20.6]} 29... Nf5 {[%clk 0:02:20.5]} 30. Qc5 {[%clk
0:00:13.6]} 30... Nd6 {[%clk 0:01:52.7]} 31. e5 {[%clk 0:00:12.5]} 31... Qf7
{[%clk 0:01:53.4]} 32. exd6 {[%clk 0:00:11.4]} 32... Qxf4 {[%clk 0:01:54]} 33.
Rf1 {[%clk 0:00:06.8]} 33... Qg3 {[%clk 0:01:47.3]} 34. Qb6 {[%clk 0:00:06.8]}
34... Qe3+ {[%clk 0:01:19.8]} 35. Qxe3 {[%clk 0:00:06.5]} 1-0

[Event "Early-Titled-Tuesday-Blitz-April-23-2024"]
[Site "Chess.com"]
[Date "2024.04.23"]
[Round "9"]
[White "DvaHrasta"]
[Black "Levanzovsky"]
[Result "1-0"]
[WhiteElo "2430"]
[BlackElo "2499"]
[TimeControl "180+1"]
[EndTime "9:48:15 PDT"]
[Termination "DvaHrasta won by resignation"]

1. c4 {[%clk 0:03:00.9]} 1... e6 {[%clk 0:02:59.1]} 2. g3 {[%clk 0:03:00.8]}
2... d5 {[%clk 0:02:58.1]} 3. d4 {[%clk 0:03:00.2]} 3... Nf6 {[%clk 0:02:58.3]}
4. Nf3 {[%clk 0:02:59.6]} 4... Be7 {[%clk 0:02:52.9]} 5. Bg2 {[%clk 0:02:59.3]}
5... O-O {[%clk 0:02:53.4]} 6. O-O {[%clk 0:02:57.8]} 6... a5 {[%clk 0:02:54.2]}
7. Qc2 {[%clk 0:02:54.2]} 7... c6 {[%clk 0:02:54]} 8. Nbd2 {[%clk 0:02:50.8]}
8... b6 {[%clk 0:02:51.6]} 9. e4 {[%clk 0:02:49.9]} 9... Ba6 {[%clk 0:02:42.2]}
10. e5 {[%clk 0:02:46.6]} 10... Ne4 {[%clk 0:02:39]} 11. b3 {[%clk 0:02:30.4]}
11... Nxd2 {[%clk 0:02:25.9]} 12. Bxd2 {[%clk 0:02:30.3]} 12... Nd7 {[%clk
0:02:11.1]} 13. Rac1 {[%clk 0:02:27.2]} 13... Rc8 {[%clk 0:02:10.9]} 14. h4
{[%clk 0:02:27]} 14... c5 {[%clk 0:02:10.7]} 15. dxc5 {[%clk 0:02:17.5]} 15...
Nxc5 {[%clk 0:02:07.8]} 16. Rfd1 {[%clk 0:02:04.2]} 16... dxc4 {[%clk
0:01:53.6]} 17. Bg5 {[%clk 0:01:57.7]} 17... Nd3 {[%clk 0:01:49.1]} 18. bxc4
{[%clk 0:01:49.4]} 18... Bxc4 {[%clk 0:01:35.8]} 19. Bf1 {[%clk 0:01:30.7]}
19... Bxg5 {[%clk 0:00:31.4]} 20. Nxg5 {[%clk 0:01:19.2]} 20... h6 {[%clk
0:00:24.5]} 21. Ne4 {[%clk 0:01:09.5]} 21... Qd5 {[%clk 0:00:12.6]} 22. Nd6
{[%clk 0:01:00.2]} 22... Rc5 {[%clk 0:00:09]} 23. Nxc4 {[%clk 0:00:55.7]} 23...
Rxc4 {[%clk 0:00:05.3]} 24. Qxc4 {[%clk 0:00:50]} 24... Nxc1 {[%clk 0:00:03.4]}
1-0

[Event "Early-Titled-Tuesday-Blitz-April-23-2024"]
[Site "Chess.com"]
[Date "2024.04.23"]
[Round "9"]
[White "littlepinkyboy"]
[Black "PeshkaCh"]
[Result "0-1"]
[WhiteElo "2681"]
[BlackElo "2877"]
[TimeControl "180+1"]
[EndTime "9:48:19 PDT"]
[Termination "PeshkaCh won on time"]

1. e4 {[%clk 0:02:58]} 1... e5 {[%clk 0:03:00.2]} 2. Nf3 {[%clk 0:02:57]} 2...
Nc6 {[%clk 0:03:00.5]} 3. Bb5 {[%clk 0:02:56.8]} 3... a6 {[%clk 0:03:01.1]} 4.
Ba4 {[%clk 0:02:53.9]} 4... Nge7 {[%clk 0:03:01.6]} 5. O-O {[%clk 0:02:53.9]}
5... Ng6 {[%clk 0:03:01.5]} 6. c3 {[%clk 0:02:53.9]} 6... d5 {[%clk 0:03:02.1]}
7. exd5 {[%clk 0:02:51.7]} 7... Qxd5 {[%clk 0:03:03]} 8. Bb3 {[%clk 0:02:46.5]}
8... Qd3 {[%clk 0:02:36.6]} 9. Ng5 {[%clk 0:02:33.7]} 9... Be7 {[%clk
0:02:25.6]} 10. Bxf7+ {[%clk 0:02:26.8]} 10... Kf8 {[%clk 0:02:25.4]} 11. Bxg6
{[%clk 0:02:00.3]} 11... hxg6 {[%clk 0:02:20.8]} 12. Qf3+ {[%clk 0:01:52.5]}
12... Bf5 {[%clk 0:02:18.4]} 13. Ne6+ {[%clk 0:01:45.6]} 13... Kg8 {[%clk
0:02:17.7]} 14. Nxc7 {[%clk 0:01:40.6]} 14... Qxf3 {[%clk 0:02:17.5]} 15. gxf3
{[%clk 0:01:41.4]} 15... Rf8 {[%clk 0:01:49.5]} 16. Nd5 {[%clk 0:01:35.8]} 16...
Bd6 {[%clk 0:01:47.3]} 17. Re1 {[%clk 0:00:51]} 17... Bd3 {[%clk 0:01:12.4]} 18.
Re3 {[%clk 0:00:40.5]} 18... e4 {[%clk 0:01:12.6]} 19. fxe4 {[%clk 0:00:38.3]}
19... Ne5 {[%clk 0:01:13.1]} 20. f4 {[%clk 0:00:12.6]} 20... Bc5 {[%clk
0:01:13.6]} 21. Na3 {[%clk 0:00:03.2]} 21... Bxe3+ {[%clk 0:00:53.5]} 22. dxe3
{[%clk 0:00:03.2]} 22... Nf3+ {[%clk 0:00:53.5]} 23. Kg2 {[%clk 0:00:02.3]}
23... Bxe4 {[%clk 0:00:53.4]} 24. Ne7+ {[%clk 0:00:01.2]} 24... Kf7 {[%clk
0:00:53.7]} 0-1

[Event "Early-Titled-Tuesday-Blitz-April-23-2024"]
[Site "Chess.com"]
[Date "2024.04.23"]
[Round "9"]
[White "DumbKing75"]
[Black "Antosha_Chekhonte"]
[Result "0-1"]
[WhiteElo "2631"]
[BlackElo "2571"]
[TimeControl "180+1"]
[EndTime "9:48:20 PDT"]
[Termination "Antosha_Chekhonte won by resignation"]

1. e4 {[%clk 0:03:00.9]} 1... c6 {[%clk 0:03:00.1]} 2. d4 {[%clk 0:02:54.7]}
2... d5 {[%clk 0:03:00.4]} 3. exd5 {[%clk 0:02:52.4]} 3... cxd5 {[%clk
0:03:00.7]} 4. Nf3 {[%clk 0:02:51.1]} 4... Nc6 {[%clk 0:02:56]} 5. c3 {[%clk
0:02:51.4]} 5... Bg4 {[%clk 0:02:49.4]} 6. Bb5 {[%clk 0:02:50.8]} 6... Qb6
{[%clk 0:02:34.9]} 7. Ba4 {[%clk 0:02:11.5]} 7... e6 {[%clk 0:02:29.7]} 8. h3
{[%clk 0:02:10.3]} 8... Bh5 {[%clk 0:02:25.4]} 9. g4 {[%clk 0:02:07.3]} 9... Bg6
{[%clk 0:02:25.6]} 10. Ne5 {[%clk 0:02:07.4]} 10... Bd6 {[%clk 0:02:23.2]} 11.
Qb3 {[%clk 0:01:16.4]} 11... Ne7 {[%clk 0:01:52.3]} 12. Bf4 {[%clk 0:01:10.7]}
12... Qc7 {[%clk 0:01:37.5]} 13. Nxg6 {[%clk 0:00:59.9]} 13... hxg6 {[%clk
0:01:24.1]} 14. Be3 {[%clk 0:00:54.4]} 14... f5 {[%clk 0:01:13.2]} 15. Qc2
{[%clk 0:00:43.8]} 15... fxg4 {[%clk 0:01:08.2]} 16. h4 {[%clk 0:00:39.3]} 16...
Nf5 {[%clk 0:01:06.5]} 17. Bg5 {[%clk 0:00:39.5]} 17... g3 {[%clk 0:01:04.5]}
18. f3 {[%clk 0:00:37.8]} 18... Bf4 {[%clk 0:01:00.7]} 19. Bxc6+ {[%clk
0:00:11.6]} 19... bxc6 {[%clk 0:00:59.5]} 20. Qg2 {[%clk 0:00:07.4]} 20... Ne3
{[%clk 0:00:53.4]} 21. Qg1 {[%clk 0:00:03.5]} 21... g2 {[%clk 0:00:42.3]} 22.
Rh3 {[%clk 0:00:02.5]} 0-1

[Event "Early-Titled-Tuesday-Blitz-April-23-2024"]
[Site "Chess.com"]
[Date "2024.04.23"]
[Round "9"]
[White "NikitaShnadrygin"]
[Black "Zohid6"]
[Result "1-0"]
[WhiteElo "2710"]
[BlackElo "2922"]
[TimeControl "180+1"]
[EndTime "9:48:21 PDT"]
[Termination "NikitaShnadrygin won by resignation"]

1. e4 {[%clk 0:03:00.9]} 1... e5 {[%clk 0:02:59.6]} 2. Nf3 {[%clk 0:02:59]} 2...
Nf6 {[%clk 0:02:59.4]} 3. d4 {[%clk 0:02:57.5]} 3... Nxe4 {[%clk 0:02:59.5]} 4.
Bd3 {[%clk 0:02:53.8]} 4... Nc6 {[%clk 0:02:59]} 5. dxe5 {[%clk 0:02:47.5]} 5...
d5 {[%clk 0:02:58.3]} 6. exd6 {[%clk 0:02:44.4]} 6... Nxd6 {[%clk 0:02:57.4]} 7.
Nc3 {[%clk 0:02:43.1]} 7... Be7 {[%clk 0:02:50.6]} 8. Nd5 {[%clk 0:02:42.1]}
8... O-O {[%clk 0:02:50.3]} 9. O-O {[%clk 0:02:40.6]} 9... Be6 {[%clk
0:02:41.1]} 10. Nxe7+ {[%clk 0:02:36.9]} 10... Qxe7 {[%clk 0:02:42]} 11. Re1
{[%clk 0:01:36.3]} 11... f6 {[%clk 0:02:35.6]} 12. Bf4 {[%clk 0:01:30.1]} 12...
Rfe8 {[%clk 0:02:31.4]} 13. c3 {[%clk 0:01:24.6]} 13... Rad8 {[%clk 0:02:29]}
14. Qc2 {[%clk 0:01:24.2]} 14... g6 {[%clk 0:02:20.8]} 15. h4 {[%clk 0:01:06.7]}
15... Qf7 {[%clk 0:02:18.8]} 16. Bxd6 {[%clk 0:01:00.6]} 16... Rxd6 {[%clk
0:02:18.2]} 17. Re3 {[%clk 0:00:49]} 17... Red8 {[%clk 0:02:16.6]} 18. b4 {[%clk
0:00:42.3]} 18... Ne7 {[%clk 0:02:08.5]} 19. Nd4 {[%clk 0:00:39.8]} 19... Nd5
{[%clk 0:02:00.4]} 20. Rxe6 {[%clk 0:00:22.7]} 20... Rxe6 {[%clk 0:02:01.3]} 21.
Nxe6 {[%clk 0:00:23.6]} 21... Qxe6 {[%clk 0:02:02.2]} 22. g3 {[%clk 0:00:18]}
22... Kg7 {[%clk 0:01:59.9]} 23. Rd1 {[%clk 0:00:17.6]} 23... Qc6 {[%clk
0:01:56.8]} 24. Be4 {[%clk 0:00:15.3]} 24... Qc4 {[%clk 0:01:51.3]} 25. Rd4
{[%clk 0:00:14.7]} 25... Nxb4 {[%clk 0:01:43]} 26. Rxc4 {[%clk 0:00:09.4]} 26...
Nxc2 {[%clk 0:01:43.5]} 27. Rxc7+ {[%clk 0:00:09.9]} 27... Kh6 {[%clk 0:01:43]}
28. Bxc2 {[%clk 0:00:10.6]} 28... Rd2 {[%clk 0:01:43.2]} 29. Bb3 {[%clk
0:00:11.1]} 29... a5 {[%clk 0:01:39.8]} 30. Rxb7 {[%clk 0:00:11.1]} 30... a4
{[%clk 0:01:39.9]} 31. Bxa4 {[%clk 0:00:11]} 31... Rxa2 {[%clk 0:01:40.6]} 32.
Bc6 {[%clk 0:00:10.8]} 32... Rc2 {[%clk 0:01:39.9]} 33. Rb3 {[%clk 0:00:11.1]}
33... f5 {[%clk 0:01:38.4]} 34. Kg2 {[%clk 0:00:11.6]} 34... Rc1 {[%clk
0:01:38.2]} 35. Bd5 {[%clk 0:00:11.6]} 35... Kh5 {[%clk 0:01:35.7]} 36. Bf3+
{[%clk 0:00:10.4]} 36... Kh6 {[%clk 0:01:35.8]} 37. Bd5 {[%clk 0:00:11.1]} 37...
Rd1 {[%clk 0:01:35.5]} 38. c4 {[%clk 0:00:11.6]} 38... Rc1 {[%clk 0:01:35.8]}
39. Rd3 {[%clk 0:00:11.8]} 39... Kg7 {[%clk 0:01:35.6]} 40. Kf3 {[%clk
0:00:12.2]} 40... Kf6 {[%clk 0:01:35.8]} 41. Re3 {[%clk 0:00:12.9]} 41... h5
{[%clk 0:01:33.6]} 42. Re6+ {[%clk 0:00:13.4]} 42... Kg7 {[%clk 0:01:34]} 43.
Re7+ {[%clk 0:00:13.9]} 43... Kh8 {[%clk 0:01:29.6]} 44. Kf4 {[%clk 0:00:13.5]}
44... Rc2 {[%clk 0:01:25.9]} 45. Kg5 {[%clk 0:00:13.6]} 45... Re2 {[%clk
0:01:25.5]} 46. Rxe2 {[%clk 0:00:12.9]} 1-0